Cogmind - Beta 12 @@@ ROGUE MODE // 2023.11.25 @ 13:24:28 Player: Tim Result: Destroyed by G-34 Mercenary with Small Laser Performance ------------- Evolutions (1) 500 Regions Visited (2) 400 Robots Destroyed (22) 110 Value Destroyed (602) 602 Prototype IDs (4) 80 Alien Tech Used (0) 0 Bonus (0) 0 TOTAL SCORE: 1692 Bonus ------- None Cogmind --------- Core Integrity 0/400 Matter 300/300 Energy 100/100 System Corruption 0% Temperature Cool (12) Movement Core (350) Ox6 Location -9/Materials Parts ------- > --- POWER (1) -------- (None) > --- PROPULSION (4) --- (None) > --- UTILITY (2) ------ Large Storage Unit Hacking Suite > --- WEAPON (2) ------- (None) > --- INVENTORY (15) --- Ion Engine Light Ion Engine Heat Sink Heat Sink Small Storage Unit Large Storage Unit Improved Terrain Scanner Seismic Detector Improved Targeting Computer Peak State ------------ > --- POWER ------------ Improved Ion Engine > --- PROPULSION ------- Aluminum Leg Aluminum Leg Aluminum Leg Aluminum Leg > --- UTILITY ---------- Large Storage Unit Hacking Suite > --- WEAPON ----------- Light Assault Rifle Light Assault Rifle > --- INVENTORY -------- Ion Engine Light Ion Engine Heat Sink Heat Sink Small Storage Unit Large Storage Unit Improved Terrain Scanner Seismic Detector Improved Targeting Computer Small Laser Light Assault Rifle Heavy Assault Rifle [Rating: 13] Favorites ----------- Power Light Ion Engine Engine Light Ion Engine Propulsion Aluminum Leg Leg Aluminum Leg Utility Large Storage Unit Device Seismic Detector Storage Large Storage Unit Hackware Hacking Suite Weapon Assault Rifle Energy Gun Medium Laser Ballistic Gun Assault Rifle Build | -11 -10 -9 ------- Run | Jun Mat Mat Slots Evolved 2 | . . 2 Power . | . . . Propulsion 2 | . . 2 Utility . | . . . Weapon . | . . . Parts Attached 24 | 8 6 10 Power 3 | 1 1 1 Engine 3 | 1 1 1 Core . | . . . Reactor . | . . . Propulsion 7 | 2 2 3 Treads . | . . . Leg 7 | 2 2 3 Wheel . | . . . Hover . | . . . Flight . | . . . Utility 6 | 2 3 1 Device 1 | 1 . . Storage 4 | 1 3 . Processor . | . . . Hackware 1 | . . 1 Protection . | . . . Artifact . | . . . Weapon 8 | 3 . 5 Energy Gun 2 | 1 . 1 Energy Cannon . | . . . Ballistic Gun 6 | 2 . 4 Ballistic Cannon . | . . . Launcher . | . . . Special Weapon . | . . . Impact Weapon . | . . . Slashing Weapon . | . . . Piercing Weapon . | . . . Special Melee Weapon . | . . . Unidentified Prototypes . | . . . Parts Lost 14 | . 1 13 Power 2 | . . 2 Propulsion 5 | . . 5 Utility . | . . . Weapon 7 | . 1 6 Highest Loss Streak 11 | . 1 11 To Critical Strikes . | . . . Average Slot Usage (%) 94 | . 97 89 Engine 12 | . 14 10 Leg 30 | . 28 35 Device 9 | . 14 . Storage 13 | . 14 11 Hackware 3 | . . 10 Energy Gun 7 | . 11 . Ballistic Gun 15 | . 14 19 Naked Turns . | . . . Heaviest Build 31 | 13 28 31 Greatest Support 40 | 20 20 40 Greatest Overweight (x) 8 | 1 8 7 Average Overweight (x) 1 | . 1 . Largest Inventory Capacity 15 | 8 15 15 Average Capacity 14 | 6 14 15 Most Carried 15 | 5 15 14 Average Carried 10 | 2 11 12 Final Capacity 15 | 8 15 15 Final Carried 15 | 3 15 9 Class Distribution -------------------- 74% | Mutant 25% | Scavenger-Mutant Dominant Class ---------------- Mutant | -10/Materials Scavenger-Mutant | -9/Materials Resources | -11 -10 -9 ----------- Run | Jun Mat Mat Matter Collected 683 | 275 185 223 Remotely . | . . . Salvage Created 791 | 30 331 430 Parts 42 | 4 22 16 Haulers Intercepted . | . . . Recyclers Shooed 1 | . . 1 Parts Field Recycled . | . . . Retrieved Matter . | . . . Parts Self-Destructed . | . . . Prevented . | . . . Kills | -11 -10 -9 ------- Run | Jun Mat Mat Combat Hostiles Destroyed 18 | . 9 9 Guns 18 | . 9 9 Classes Destroyed 7 | 1 4 2 Worker 2 | . 1 1 Tunneler 1 | 1 . . Operator 1 | . 1 . Swarmer 3 | . 3 . Grunt 12 | . 6 6 Brawler 1 | . . 1 Sentry 2 | . . 2 Best Kill Streak 4 | 1 3 4 Combat Bots Only 3 | . 3 3 Max Kills in Single Turn 1 | 1 1 1 Gunslinging . | . . . Exploded . | . . . Melee . | . . . Uniques/NPCs Destroyed . | . . . Combat | -11 -10 -9 -------- Run | Jun Mat Mat Damage Taken 1739 | . 361 1378 Core 441 | . 40 401 Absorbed by Shields . | . . . Core Remaining (%) 92 | 100 84 . Volleys Fired 101 | 2 40 59 Largest 2 | 2 2 2 Hottest 70 | 70 70 60 Shots Fired 191 | 4 79 108 Gun 191 | 4 79 108 Cannon . | . . . Launcher . | . . . Special . | . . . Kinetic 144 | 2 40 102 Thermal 47 | 2 39 6 Explosive . | . . . Electromagnetic . | . . . Robot Hit Streak 13 | 2 13 13 Robot Miss Streak 4 | 2 4 4 Penetration Max . | . . . Secondary Targets 5 | . 3 2 Max Gunslinging Chain 1 | . 1 1 Shots Hit Robots 132 | 2 49 81 Core Hits 43 | 1 17 25 Critical Kills . | . . . Critical Parts Destroyed 1 | . . 1 Critical Strikes 2 | . 1 1 Burn 1 | . 1 . Destroy 1 | . . 1 Melee Attacks . | . . . Impact . | . . . Slashing . | . . . Piercing . | . . . Sneak Attacks . | . . . Combat Hostiles . | . . . Follow-up Attacks . | . . . Damage Inflicted 1311 | 22 513 776 Guns 1310 | 22 512 776 Cannons . | . . . Explosions . | . . . Melee . | . . . Ramming 1 | . 1 . Kinetic 989 | 10 238 741 Thermal 321 | 12 274 35 Explosive . | . . . Electromagnetic . | . . . Impact . | . . . Slashing . | . . . Piercing . | . . . Highest Corruption . | . . . Average Corruption . | . . . Corruption Purged . | . . . Corruption Blocked . | . . . Overload Shots . | . . . Overflow Damage . | . . . Projectiles . | . . . Explosions . | . . . Melee . | . . . Knockbacks . | . . . Impact . | . . . Kinetic . | . . . Secondary . | . . . Self-Inflicted Damage . | . . . Shots . | . . . Rammed 1 | . 1 . Targets Rammed 1 | . 1 . Kicked . | . . . Crushed . | . . . Highest Temperature 99 | 18 99 98 Average Temperature 26 | 10 30 18 Received Heat Transfer 816 | . 138 678 Siege Activations . | . . . Robots Corrupted . | . . . Combat Hostiles . | . . . Parts Fried . | . . . Impact Corruptions . | . . . Robots Melted . | . . . Combat Hostiles . | . . . Parts Melted 2 | . 2 . Heat Transferred 1000 | 37 888 75 Parts Sabotaged . | . . . Parts Stolen . | . . . Parts Stripped . | . . . Power Chain Reactions . | . . . Missiles Intercepted . | . . . Alert | -11 -10 -9 ------- Run | Jun Mat Mat Peak Influence 288 | 5 213 288 Initial 40 | . 3 40 Average 113 | 1 103 159 Maximum Alert Level 1 | . 1 1 Low Security (%) 89 | 100 98 66 Level 1 10 | . 1 33 Level 2 . | . . . Level 3 . | . . . Level 4 . | . . . Level 5 . | . . . High Security . | . . . Max Security . | . . . Squads Dispatched 6 | . 4 2 Investigation 2 | . 1 1 Extermination . | . . . Reinforcement 4 | . 3 1 Assault . | . . . Garrison . | . . . Intercept . | . . . Searches Triggered . | . . . Construction Impeded . | . . . Haulers Reinforced . | . . . Active Scanning Responses . | . . . Cargo Convoy Interrupts . | . . . Stealth | -11 -10 -9 --------- Run | Jun Mat Mat Distress Signals 1 | . . 1 Communications Jammed . | . . . Distress Signals . | . . . Times Spotted 32 | . 16 16 Peak Tracking Total 7 | . 5 7 Tactical Retreats 1 | . . 1 Traps | -11 -10 -9 ------- Run | Jun Mat Mat Traps Triggered 1 | . 1 . Indirectly . | . . . Trap Hack Attempts . | . . . Triggered . | . . . Disarmed . | . . . Reprogrammed . | . . . Reused . | . . . Traps Extracted . | . . . Installed . | . . . Triggered . | . . . Machines | -11 -10 -9 ---------- Run | Jun Mat Mat Machines Disabled . | . . . Max in Single Turn . | . . . Machines Repaired . | . . . Machines Sabotaged . | . . . Overloaded Fab Kills . | . . . Hacking | -11 -10 -9 --------- Run | Jun Mat Mat Machines Accessed 4 | . 2 2 Terminals 4 | . 2 2 Fabricators . | . . . Repair Stations . | . . . Recycling Units . | . . . Scanalyzers . | . . . Garrison Access . | . . . Total Hacks 8 | . 2 6 Successful 5 | . 2 3 Failed 3 | . . 3 Catastrophic . | . . . Database Lockouts . | . . . Manual . | . . . Terminals 8 | . 2 6 Fabricators . | . . . Repair Stations . | . . . Recycling Units . | . . . Scanalyzers . | . . . Garrison Access . | . . . Terminal Hacks 5 | . 2 3 Prototype ID Bank 2 | . . 2 Zone Layout 3 | . 2 1 Fabricator Hacks . | . . . Repair Station Hacks . | . . . Recycling Unit Hacks . | . . . Scanalyzer . | . . . Garrison Access Hacks . | . . . Unauthorized Hacks . | . . . Terminals . | . . . Fabricators . | . . . Repair Stations . | . . . Recycling Units . | . . . Scanalyzers . | . . . Garrison Access . | . . . Data Cores Recovered . | . . . Used . | . . . Hacking Detections 4 | . 2 2 Full Trace Events 1 | . . 1 Feedback Events . | . . . Feedback Blocked . | . . . Robot Schematics Acquired . | . . . Robots Built . | . . . Authchips . | . . . Time . | . . . Total Robot Build Rating . | . . . Part Schematics Acquired . | . . . Parts Built . | . . . Authchips . | . . . Time . | . . . Total Part Build Rating . | . . . Parts Repaired . | . . . Time . | . . . Parts Recycled . | . . . Recycled Matter . | . . . Retrieved Matter . | . . . Retrieved Components . | . . . Parts Scanalyzed . | . . . Part Schematics Acquired . | . . . Parts Damaged . | . . . Bothacking | -11 -10 -9 ------------ Run | Jun Mat Mat Used RIF Installer . | . . . Robots Hacked . | . . . Non-combat . | . . . Combat . | . . . Robot Hacks Applied . | . . . Relay Couplers Released . | . . . Fabnet Peak Effective % . | . . . Robots Rewired . | . . . Allies Hacked . | . . . Hacks Repelled . | . . . Allies | -11 -10 -9 -------- Run | Jun Mat Mat Total Allies . | . . . Largest Group . | . . . Highest-Rated Group . | . . . Highest-Rated Ally . | . . . Total Orders . | . . . Ally Attacks . | . . . Total Damage . | . . . Kills . | . . . Allies Corrupted . | . . . Allies Melted . | . . . Intel | -11 -10 -9 ------- Run | Jun Mat Mat Robot Analysis Total . | . . . Derelict Logs Recovered . | . . . Drone Launches . | . . . Drone Recoveries . | . . . Exploration | -11 -10 -9 ------------- Run | Jun Mat Mat Turns Passed 994 | 69 624 301 Spaces Moved 372 | 47 223 102 Core 42 | 20 21 1 Treads . | . . . Legs 330 | 27 202 101 Wheels . | . . . Hover . | . . . Flight . | . . . Fastest Speed 50 | 50 120 120 Average Speed 173 | 91 211 126 Slowest Speed 450 | 120 450 400 Overloaded Moves . | . . . Propulsion Burnouts . | . . . Robots Hopped . | . . . Cave-ins Triggered . | . . . Exploration Rate (%) 14 | 3 26 14 Regions Visited 2 Branch Regions . Pre-discovered Areas . | . . . Known Exits Taken . | . . . Unknown Exits Taken 2 | 1 1 . Scrap Searched . | . . . Spaces Dug . | . . . Terrain Destroyed . | . . . Melee . | . . . Projectile . | . . . AOE . | . . . Terrain Rammed . | . . . Walls Destroyed . | . . . Machines Disabled . | . . . Actions | -11 -10 -9 --------- Run | Jun Mat Mat Total 541 | 68 291 182 Wait 20 | 4 8 8 Move 370 | 46 222 102 Hop . | . . . Pick Up 22 | 7 12 3 Fast Attach 3 | 3 . . Attach 14 | 5 . 9 Detach 1 | 1 . . Swap 7 | . 6 1 Drop 2 | . 2 . Fire 101 | 2 40 59 Melee . | . . . Ram 1 | . 1 . Kick . | . . . Crush . | . . . Escape Stasis . | . . . Rewire . | . . . Trap . | . . . Miscellaneous . | . . . Route ------- -11/Junkyard -10/Materials -9/Materials History --------- Turn | Location | Event 9 | -11/Junkyard | Discovered new exit (range 15) 70 | -11/Junkyard | Entered Materials 315 | -10/Materials | Build established: Mutant 541 | -10/Materials | Discovered new exit (range 15) 694 | -10/Materials | Entered another Materials area 694 | -9/Materials | Evolved 2 slots: Propulsion x2 970 | -9/Materials | Core integrity fell below 50% 991 | -9/Materials | Core integrity fell below 20% 995 | -9/Materials | Destroyed by G-34 Mercenary with Small Laser Last Messages --------------- Acquired 4 matter. Lgt. Assault Rifle destroyed. Acquired 3 matter. R-06 Scavenger collects Med. Matter Pod. Acquired 3 matter. Aluminum Leg destroyed. Hvy. Assault Rifle destroyed. Acquired 10 matter. Acquired 1 matter. R-06 Scavenger collects Aluminum Leg. Acquired 1 matter. R-06 Scavenger collects Aluminum Leg. Acquired 1 matter. R-06 Scavenger collects Sensor Array. Acquired 1 matter. M-13 Machinist repairs G-34 Mercenary. Imp. Ion Engine destroyed. Acquired 1 matter. Lgt. Assault Rifle destroyed. Sml. Laser destroyed. Map ----- +----------------------------------------------------+ | ####+###?# #???????????????????????????? | | ???# #???# #???????????????????????????? | | ???# #???# #???????????????????????????? | | ???# #???# #???????????????????????????? | | ???# #???# #???????????????????????????? | | ???# ##### #???????????????????????????? | | ???# #???????????????????????????? | | ???####### #???????????????????????????? | | ?????????# ###########?????????????????? | | ?????????# % / ???????????? | | ?????????####+########?????????????????? | | ?????????# !==#??# ?????????????????? | | ########## """% #??# ?????????????????? | | # # """[ #??# ?????????????????? | | # """ # """ #??# ?????????????????? | | # """ # % #??# ?????????????????? | | # """ #!% #??###?????????????????? | | # #+######?####?????????????????? | | # # #????# ?????????????????? | | # # #????# ##?????????????????? | | # "T" + #????# #??????????????????? | | # # #????# #??????????????????? | | ########## ##???# #??????????????????? | | ????#!! =*#???# #??????????????????? | | ????#!! g*##### #??????????????????? | | ????#!! %@g #??????????????????? | | ????#!! g%%##### #??????????????????? | | ????#!! !#???# #??????????????????? | | ????#!! ### #???# #??????????????????? | | ????#####?# #???# #??????????????????? | | ??????????# #???# #??????????????????? | | ??????????# #####+#??????????????????? | | ??????????# # #??????????????????? | | ?########## # #??????????????????? | | ?# # # """#??????????????????? | | ?# """ # # """#??????????????????? | | ??????????# #????????????????????????? | | ??????????# #????????????????????????? | | ??????????+ ?????????????????????????? | | ??????????# ?????????????????????????? | | ??????????? ?????????????????????????? | | ???????????????????????????????????????? | | ???????????????????????????????????????? | | ???????????????????????????????????????? | | ???????????????????????????????????????? | | ???????????????????????????????????????? | | ???????????????????????????????????????? | | ???????????????????????????????????????? | | ???????????????????????????????????????? | | ???????????????????????????????????????? | +----------------------------------------------------+ Best States ------------- Heat Dissipation 28 Energy Generation 12 Energy Capacity 265 Matter Stores 300 Matter Capacity 300 Sight Range 16 Terrain Scan Density 10 Evasion (%) 55 Offensive Hacking 10 Item Schematics ----------------- None Robot Schematics ------------------ None Fabricated ------------ Nothing Alien Tech Used ----------------- None Achievements -------------- None Challenges ------------ None Game ------ Seed ConcussiveReactionComputer Manual? 0 Play Time 00:20:34 Cumulative 9.8 hours Start 2023.11.25 @ 12:50:20 End 2023.11.25 @ 13:24:28 Sessions 1 Manual Loads 0 Difficulty Rogue Special Mode None Game No. 27 Rogue 27 Adventurer 0 Explorer 0 Win Type - Total 0 Types 0/0/0/0/0/0/0/0/0 Lore% 8 Gallery% 12 Achievement% 3 Wizard Run 0 Options --------- ASCII 0 Keyboard 0 Movement Mouse Keybinds 0 Fullscreen 1 Font 24/Smallcaps Map View 113x50 Tactical HUD 0 Map Filters NONE Filters NONE Steam 1 RUN: 72cb6222-4df4-4d48-b115-0d3cc0e2ffbe